bitfinex/quotes_ETHUSD_20240924
["timestamp","ask_amount","ask_price","bid_price","bid_amount"]
[1727166369850,2.00331053,2658.1,2657.9,3.76236]
[1727166369851,1.60892233,2658.1,2657.9,3.76236]
[1727166370023,1.60892233,2658.1,2658.0,3.76222]
[1727166370223,0.78922233,2658.2,2658.0,3.76222]
[1727166370535,1.60892233,2658.3,2658.0,3.76222]
[1727166370734,2.42473072,2658.3,2657.9,3.76236]
[1727166371042,5.53217023,2658.3,2657.9,3.76236]
[1727166371558,5.53217023,2658.3,2658.1,3.76198]
[1727166371559,1.60503072,2658.3,2658.1,3.76198]
[1727166371866,0.78922233,2658.3,2658.1,3.76198]
[1727166372025,0.78922233,2658.3,2657.9,3.7623]
[1727166372221,3.89666184,2658.3,2658.0,3.76213]
[1727166372429,3.89666184,2658.3,2657.9,3.7623]
[1727166372627,0.8197,2658.1,2657.9,3.7623]
[1727166373633,0.8197,2658.1,2657.7,7.52513]
[1727166373829,0.8197,2658.1,2657.8,0.55]
[1727166374144,0.8197,2658.1,2657.8,4.31245]
[1727166374331,4.51713675,2658.1,2657.7,3.76255]
[1727166374658,4.51713675,2658.1,2657.8,3.76241]
[1727166375468,1.40969724,2658.1,2657.8,3.76241]
[1727166375648,4.71636184,2658.1,2657.6,0.55]
[1727166375831,4.71636184,2658.1,2657.5,4.13247665]
[1727166375832,3.10743951,2657.9,2657.5,0.36967665]
[1727166376020,0.8197,2657.6,2657.5,0.36967665]
[1727166376452,1.71840974,2657.6,2657.5,0.36967665]
[1727166376637,3.56375928,2657.6,2657.5,0.36967665]
[1727166376842,2.77453695,2657.6,2657.5,0.36967665]
[1727166377048,3.95814748,2657.6,2657.5,0.36967665]
[1727166377232,2.77453695,2657.6,2657.5,0.36967665]
[1727166377566,9.31339425,2657.6,2657.5,0.36967665]
[1727166378048,12.42083376,2657.6,2657.5,0.36967665]
[1727166378460,10.84241251,2657.6,2657.5,0.36967665]
[1727166378759,10.82570298,2657.6,2657.5,0.36967665]
[1727166379130,10.84185414,2657.6,2657.5,0.36967665]
[1727166379329,10.82519859,2657.6,2657.5,0.36967665]
[1727166379563,9.64449259,2657.6,2657.5,0.36967665]
[1727166379966,10.82519859,2657.6,2657.5,0.36967665]
[1727166380138,3.76338,2657.2,2656.5,3.76427]
[1727166380338,0.78716456,2657.2,2656.7,3.764]
[1727166380557,0.8197,2657.3,2656.7,3.76398]
[1727166380773,3.10743951,2657.1,2656.7,3.76398]
[1727166381144,3.10743951,2657.1,2656.6,4.15667591]
[1727166381451,3.92713951,2657.3,2656.7,3.76393]
[1727166381790,0.84773941,2657.2,2656.8,0.55]
[1727166381985,0.84773941,2657.2,2656.8,3.76389]
[1727166382286,3.10743951,2657.1,2656.7,0.55]
[1727166382778,3.10743951,2657.1,2656.7,4.31406]
[1727166383095,3.10743951,2657.1,2656.7,0.55]
[1727166383300,3.9612494,2657.1,2656.7,0.55]
[1727166383459,3.9612494,2657.1,2656.7,4.31396]
[1727166383658,3.10743951,2657.1,2656.7,4.31396]
[1727166383867,3.92713951,2657.3,2656.8,3.76391]
[1727166384393,0.8197,2657.3,2657.0,3.76363]
[1727166384798,0.8197,2657.3,2657.1,4.3134]
[1727166385175,0.8197,2657.3,2657.1,0.55]
[1727166385360,0.8197,2657.3,2657.0,3.76363]
[1727166385564,0.8197,2657.3,2657.1,3.76349]
[1727166386321,3.92713951,2657.8,2657.4,3.76307]
[1727166386478,1.68928714,2657.7,2657.3,3.76318]
[1727166386672,0.8197,2657.8,2657.1,0.55]
[1727166386988,0.8197,2658.0,2657.7,3.76265]
[1727166387360,0.8197,2658.3,2657.9,3.76236]
[1727166387698,0.8197,2658.3,2657.9,3.76229]
[1727166387859,0.78716456,2658.5,2658.0,4.352]
[1727166388061,0.8197,2658.8,2658.6,3.76128]
[1727166388255,0.8197,2658.8,2658.5,3.76143]
[1727166388801,0.8197,2658.8,2658.3,3.76177]
[1727166388802,6.86871951,2658.7,2658.1,3.76198]
[1727166388968,3.10743951,2658.5,2658.1,3.76198]
[1727166389911,3.10743951,2658.5,2658.2,3.76186]
[1727166390067,0.31074395,2658.4,2658.1,7.52397]
[1727166390267,0.31074395,2658.4,2658.1,3.76198]
[1727166390681,0.31074395,2658.4,2658.2,3.76193]
[1727166392569,0.31074395,2658.4,2658.0,0.55]
[1727166392570,0.31074395,2658.4,2658.0,7.31219]
[1727166392969,0.31074395,2658.4,2658.1,3.76207]
[1727166393174,0.31074395,2658.4,2658.1,3.76198]
[1727166394399,0.31074395,2658.4,2658.0,3.0]
[1727166394400,3.93553951,2658.3,2658.0,3.0]
[1727166394876,0.8281,2658.3,2658.0,3.0]
[1727166396506,0.8281,2658.3,2657.9,3.76224]
[1727166399373,3.10743951,2658.1,2657.7,3.0]
[1727166399574,0.8281,2657.8,2657.4,3.76307]
[1727166400115,4.59072,2657.8,2657.2,3.76322]
[1727166400419,3.10743951,2657.5,2657.1,3.7634]
[1727166400618,3.10743951,2657.3,2656.9,7.52739]
[1727166400821,3.10743951,2657.3,2657.0,3.76359]
[1727166400972,3.10743951,2657.3,2656.9,3.76369]
[1727166400973,3.10743951,2657.3,2657.1,3.76349]
[1727166401298,3.10743951,2657.3,2656.9,3.7637]
[1727166401503,3.93553951,2657.3,2656.9,3.7637]
[1727166401801,3.10743951,2657.2,2657.0,3.0]
[1727166402007,3.10743951,2657.2,2656.9,3.7637]
[1727166402176,0.78716456,2657.8,2657.2,3.76326]
[1727166402377,5.33660913,2658.0,2657.4,3.76306]
[1727166402378,0.8281,2657.9,2657.4,3.76306]
[1727166402577,1.22473041,2657.8,2657.4,3.76306]
[1727166403727,1.22473041,2657.8,2657.4,3.763]
[1727166404614,0.8281,2657.9,2657.6,3.76278]
[1727166405589,0.8281,2657.9,2657.4,3.76295]
[1727166405913,0.8281,2657.9,2657.5,3.76286]
[1727166406088,0.8281,2657.9,2657.6,3.76278]
[1727166406715,0.8281,2657.9,2657.4,3.76295]
[1727166406925,0.76977795,2657.8,2657.4,3.76295]
[1727166407223,0.76977795,2657.8,2657.4,7.52594]
[1727166407728,0.76977795,2657.8,2657.4,3.76295]
[1727166409096,0.76977795,2657.8,2657.4,7.52593]
[1727166409336,0.76977795,2657.8,2657.4,3.76295]
[1727166410226,0.76977795,2657.8,2657.5,3.76284]
[1727166410432,0.76977795,2657.8,2657.4,3.76295]
[1727166410849,0.76977795,2657.8,2657.4,7.52594]
[1727166411356,0.76977795,2657.8,2657.4,3.76295]
[1727166411866,0.23850425,2657.7,2657.4,3.76295]
[1727166412663,0.23850425,2657.7,2657.4,7.52594]
[1727166412823,1.55694251,2657.8,2657.5,3.76291]
[1727166413023,1.61526456,2657.9,2657.6,3.76277]
[1727166413224,1.61526456,2657.9,2657.2,4.51544]
[1727166413225,0.78716456,2658.0,2657.7,3.76256]
[1727166413455,3.89460407,2658.0,2657.7,3.76256]
[1727166413956,0.78716456,2658.0,2657.8,3.76241]
[1727166414174,0.78716456,2658.1,2657.9,3.76236]
[1727166414347,0.78716456,2658.1,2658.0,3.76222]
[1727166414652,1.6912883,2658.1,2657.8,3.76241]
[1727166415567,1.6912883,2658.1,2657.9,3.76235]
[1727166416429,0.78716456,2658.1,2657.9,3.76235]
[1727166416625,1.69131208,2658.1,2657.9,3.76235]
[1727166416827,0.90414752,2658.1,2657.9,3.76235]
[1727166417124,0.90414752,2658.1,2657.8,3.76241]
[1727166417125,4.01161866,2658.0,2657.8,3.76241]
[1727166417344,3.10743951,2658.0,2657.8,3.76241]
[1727166418269,3.10743951,2658.0,2657.7,0.55]
[1727166418427,3.89460407,2658.0,2657.7,4.31252]
[1727166418624,0.78716456,2658.0,2657.8,3.76248]
[1727166419027,1.69146019,2658.0,2657.8,3.76248]
[1727166419229,4.57155391,2658.1,2657.8,3.76248]
[1727166419457,1.69145032,2658.0,2657.8,3.76248]
[1727166420167,0.90428576,2658.0,2657.8,3.76248]
[1727166420369,4.57155391,2658.1,2657.8,3.76248]
[1727166420535,0.90433221,2658.0,2657.8,3.76248]
[1727166420874,3.89460407,2658.1,2658.0,3.76222]
[1727166421035,4.79892247,2658.1,2657.9,3.76236]
[1727166421362,3.89460407,2658.1,2657.9,3.76236]
[1727166421561,0.90434513,2658.0,2657.9,3.76236]
[1727166422366,0.90434513,2658.0,2657.8,7.52491]
[1727166422583,3.89460407,2658.1,2657.9,3.76236]
[1727166422864,4.63857207,2658.1,2657.9,3.76236]
[1727166423165,3.85140751,2658.1,2657.9,3.76236]
[1727166423325,3.85140751,2658.1,2657.7,0.55]
[1727166423529,4.63857207,2658.1,2657.8,3.76243]
[1727166424339,3.85140751,2658.1,2657.8,3.76243]
[1727166424526,3.85140751,2658.1,2657.8,3.76241]
[1727166424731,3.85140751,2658.1,2657.8,7.52479]
[1727166424927,3.85140751,2658.1,2657.9,3.76236]
[1727166425989,3.85140751,2658.1,2658.0,3.76222]
[1727166426282,3.10743951,2658.1,2658.0,3.76222]
[1727166426642,3.10743951,2658.1,2657.9,3.76236]
[1727166427481,3.89460407,2658.1,2657.9,3.76236]
[1727166428265,3.10743951,2658.1,2657.9,3.76236]
[1727166428580,0.78716456,2658.1,2657.9,3.76236]
[1727166428958,1.69222132,2658.1,2657.9,3.76236]
[1727166429154,2.29026209,2658.1,2657.7,3.76256]
[1727166429472,3.89460407,2657.9,2657.7,3.76256]
[1727166429657,0.90544558,2657.8,2657.7,3.76256]
[1727166429861,0.90544558,2657.8,2657.7,6.76256]
[1727166430059,3.89460407,2657.9,2657.7,6.76256]
[1727166430594,0.9057168,2657.8,2657.5,3.76284]
[1727166430747,0.8121,2657.5,2657.3,3.76316]
[1727166431081,4.8004508,2657.4,2657.1,7.52683]
[1727166431245,3.89460407,2657.4,2657.2,3.76335]
[1727166432166,3.89460407,2657.4,2657.3,3.0]
[1727166432513,4.79418132,2657.4,2657.3,3.0]
[1727166433481,5.47288414,2657.4,2657.1,3.7635]
[1727166433787,3.10743951,2657.2,2656.9,3.76377]
[1727166434083,3.10743951,2657.2,2657.0,3.76363]
[1727166434592,3.10743951,2657.2,2656.9,3.76369]
[1727166434748,3.10743951,2657.2,2656.9,7.52734]
[1727166434956,3.10743951,2657.2,2656.9,7.52735]
[1727166435177,3.10743951,2657.2,2657.0,3.76362]
[1727166435349,3.68284488,2657.2,2657.0,3.76362]
[1727166436461,4.47000944,2657.2,2656.9,3.76377]
[1727166436666,0.89953729,2657.1,2656.9,3.76377]
[1727166436853,1.68670185,2657.1,2656.9,3.76377]
[1727166437556,1.68670185,2657.1,2656.9,3.7637]
[1727166437754,1.68670185,2657.1,2656.9,3.76369]
[1727166438164,1.68670185,2657.1,2657.0,3.76364]
[1727166438865,1.68670185,2657.1,2656.9,3.76369]
[1727166439277,0.78716456,2657.1,2656.9,3.76369]
[1727166439483,1.68667482,2657.1,2656.9,3.76369]
[1727166439653,3.91953951,2657.0,2656.7,0.3702709]
[1727166439858,1.68663624,2656.9,2656.7,0.3702709]
[1727166440060,3.10743951,2656.8,2656.7,0.3702709]
[1727166440283,4.79407575,2656.8,2656.7,0.3702709]
[1727166440478,5.84914201,2656.8,2656.7,0.3702709]
[1727166440904,5.84914201,2656.8,2656.4,3.76446]
[1727166441104,4.94967033,2656.8,2656.6,3.76419]
[1727166441407,4.94967033,2656.8,2656.4,3.76446]
[1727166441708,7.65896407,2656.5,2656.0,7.5299]
[1727166441928,3.10743951,2656.3,2656.0,3.76492]
[1727166442902,3.10743951,2656.3,2656.0,7.5299]
[1727166443403,3.10743951,2656.1,2656.0,4.31492]
[1727166444715,3.10743951,2656.1,2655.9,3.7652]
[1727166446242,4.70844359,2656.5,2656.1,3.76482]
[1727166446528,3.89634359,2656.7,2656.3,3.76459]
[1727166446739,4.62719941,2656.7,2656.3,3.76459]
[1727166446894,3.83829533,2656.7,2656.3,3.76459]
[1727166447303,3.10743951,2656.5,2656.3,3.76459]
[1727166447528,3.10743951,2656.5,2656.2,4.57497]
[1727166448298,3.10743951,2656.5,2656.1,3.76491]
[1727166448901,4.24409904,2656.5,2656.1,3.76491]
[1727166449440,3.10743951,2656.4,2656.1,3.76483]
[1727166449828,3.10743951,2656.4,2656.2,3.76475]
[1727166450349,3.10743951,2656.4,2656.2,3.76477]
[1727166450502,1.60100408,2656.8,2656.2,3.76475]
[1727166450503,3.10743951,2656.6,2656.2,3.76475]
[1727166451301,3.10743951,2656.6,2656.1,4.31483]
[1727166451622,3.10743951,2656.6,2656.3,3.76463]
[1727166452729,3.10743951,2656.6,2656.4,3.7644]
[1727166453341,0.65456109,2656.7,2656.4,3.7644]
[1727166454631,3.91953951,2656.8,2656.4,3.7644]
[1727166455239,3.10743951,2656.6,2656.3,4.31462]
[1727166455769,3.10743951,2656.6,2656.4,3.76449]
[1727166456060,3.10743951,2656.6,2656.3,0.55]
[1727166456061,3.10743951,2657.0,2656.6,3.76413]
[1727166456265,4.12568376,2657.0,2656.6,3.76413]
[1727166456622,3.10743951,2657.0,2656.6,3.76413]
[1727166456863,0.7729,2657.1,2656.8,3.76388]
[1727166457354,0.7729,2657.1,2656.7,3.76406]
[1727166457559,0.7729,2657.1,2656.8,3.76391]
[1727166458160,3.10743951,2657.2,2656.8,3.76391]
[1727166458161,2.38033951,2657.2,2656.8,3.76391]
[1727166458722,2.38033951,2657.2,2656.6,3.76413]
[1727166458723,6.14369951,2657.2,2656.6,3.76406]
[1727166458973,6.14369951,2657.2,2656.7,3.76405]
[1727166459261,3.10743951,2657.0,2656.7,3.76405]
[1727166459847,3.10743951,2657.0,2656.6,0.55]
[1727166460282,3.10743951,2657.0,2656.6,4.31419]
[1727166461058,0.7729,2657.1,2656.7,3.76398]
[1727166461661,4.53641,2657.1,2656.7,3.76398]
[1727166462286,0.7729,2657.1,2656.7,3.76398]
[1727166462775,3.10743951,2657.0,2656.7,3.76398]
[1727166465064,3.10743951,2657.0,2656.6,4.31419]
[1727166465493,3.10743951,2656.7,2656.4,3.0]
[1727166465659,3.10743951,2656.7,2656.4,3.76447]
[1727166465970,3.10743951,2656.7,2656.3,3.0]
[1727166466165,3.10743951,2656.5,2656.3,3.0]
[1727166466370,3.10743951,2656.5,2656.1,3.76491]
[1727166466783,3.10743951,2656.5,2656.2,3.76477]
[1727166467531,4.55275408,2656.9,2656.2,3.76477]
[1727166467532,3.10743951,2656.7,2656.4,3.76448]
[1727166467704,3.10743951,2656.7,2656.3,0.55]
[1727166468233,3.10743951,2656.7,2656.3,4.31459]
[1727166468398,3.10743951,2656.7,2656.3,0.55]
[1727166468908,6.87154951,2656.7,2656.3,0.55]
[1727166469237,3.10743951,2656.7,2656.3,4.31461]
[1727166470861,3.10743951,2656.5,2656.3,0.55]
[1727166473424,3.10743951,2656.5,2656.1,6.7649]
[1727166473625,3.10743951,2656.3,2656.0,3.7732]
[1727166474756,3.10743951,2656.3,2656.0,4.53823]
[1727166475252,3.10743951,2656.3,2656.0,3.76503]
[1727166476322,1.60920408,2656.4,2656.0,3.76503]
[1727166476521,1.60920408,2656.4,2655.9,3.39256197]
[1727166476755,1.60920408,2656.4,2656.0,4.315]
[1727166477320,0.89923579,2656.3,2656.0,4.315]
[1727166477617,1.60920408,2656.4,2656.0,4.315]
[1727166478425,1.68832006,2656.3,2656.0,4.315]
[1727166478972,8.56039957,2656.3,2655.9,0.39256197]
[1727166479253,7.66098359,2656.3,2655.9,0.39256197]
[1727166479431,7.66098359,2656.3,2656.0,3.0]
[1727166479633,3.89634359,2656.3,2656.0,3.0]
[1727166481462,0.89995696,2656.2,2656.0,3.0]
[1727166481658,3.89634359,2656.3,2656.0,6.76496]
[1727166481863,0.78890408,2656.3,2656.1,4.32083437]
[1727166483660,0.78890408,2656.7,2656.6,4.3142]
[1727166484171,0.78890408,2656.8,2656.7,4.31406]
[1727166484584,0.78890408,2656.8,2656.7,8.12896]
[1727166484585,0.90008458,2656.8,2656.7,8.12896]
[1727166484752,0.78890408,2656.9,2656.8,7.31392]
[1727166485835,1.68907198,2656.9,2656.8,7.31392]
[1727166486578,0.78890408,2657.0,2656.9,3.76378]
[1727166486736,0.78890408,2657.1,2656.9,4.31378]
[1727166487069,0.78890408,2657.1,2657.0,4.31364]
[1727166487435,1.68894073,2657.1,2657.0,4.31364]
[1727166488075,0.78890408,2657.1,2657.0,4.31364]
[1727166489375,1.68894073,2657.1,2657.0,4.31364]
[1727166489820,0.78890408,2657.1,2657.0,4.31364]
[1727166490123,1.68894073,2657.1,2657.0,4.31364]
[1727166490318,0.90003665,2657.1,2657.0,4.31364]
[1727166490503,0.78890408,2657.2,2657.1,3.7635]
[1727166490704,0.78890408,2657.3,2657.1,4.5784]
[1727166491219,1.68835134,2657.3,2657.1,0.8149]
[1727166491430,0.78890408,2657.3,2657.2,3.76335]
[1727166491904,0.78890408,2657.3,2657.1,0.8149]
[1727166492318,1.68821119,2657.3,2657.1,4.57836]
[1727166492632,1.18074685,2657.4,2657.1,4.57836]
[1727166492633,0.78890408,2657.4,2657.1,4.57836]
[1727166492837,1.68809523,2657.3,2657.1,4.57836]
[1727166493000,0.78890408,2657.3,2657.1,4.57836]
[1727166493363,0.78890408,2657.4,2657.1,4.57836]
[1727166493657,0.89906076,2657.3,2657.1,0.8149]
[1727166493795,0.78890408,2657.4,2657.1,4.57837]
[1727166493998,1.68796915,2657.3,2657.1,4.57837]
[1727166494214,0.78890408,2657.3,2657.1,4.57837]
[1727166494520,4.79533925,2657.2,2656.9,3.76376]
[1727166494710,2.45595622,2657.1,2656.8,3.0]
[1727166494905,0.89908733,2657.0,2656.8,6.76385]
[1727166495120,3.89634359,2657.0,2656.6,3.76413]
[1727166495352,1.68805441,2656.9,2656.6,3.76413]
[1727166495646,0.78890408,2656.9,2656.6,3.76413]
[1727166496523,0.78890408,2656.9,2656.7,3.55]
[1727166497219,0.78890408,2656.9,2656.7,0.55]
[1727166497422,3.10743951,2656.8,2656.4,3.0]
[1727166497620,1.68825656,2656.7,2656.4,6.76441]
[1727166498239,1.68825656,2656.7,2656.4,3.76441]
[1727166498434,1.68825656,2656.7,2656.3,4.57941]
[1727166498435,1.68825656,2656.7,2656.5,3.76427]
[1727166498766,0.7890005,2656.8,2656.5,3.76427]
[1727166498953,1.6883509,2656.7,2656.6,3.7642]
[1727166499265,1.6883509,2656.7,2656.5,4.33167917]
[1727166499464,0.7890005,2656.7,2656.5,4.33167917]
[1727166500360,0.7890005,2656.7,2656.5,3.76427]
[1727166501870,0.7890005,2656.8,2656.6,3.7642]
[1727166502163,0.7890005,2656.8,2656.6,7.52833]
[1727166502722,0.7890005,2656.8,2656.7,4.31406]
[1727166504423,5.06173313,2656.8,2656.0,3.76496]
[1727166504656,0.78912516,2656.5,2656.0,3.76496]
[1727166504868,0.78912516,2656.5,2656.2,3.76467]
[1727166506626,0.78912516,2656.5,2656.3,3.76461]
[1727166507067,0.78912516,2656.5,2656.3,4.31463]
[1727166507237,0.78912516,2656.6,2656.4,3.76446]
[1727166507440,0.78912516,2656.6,2656.5,3.76435]
[1727166507764,0.78912516,2656.8,2656.6,4.3142]
[1727166508136,0.89932884,2656.7,2656.6,4.3142]
[1727166508346,0.89930971,2656.7,2656.6,4.3142]
[1727166508548,0.78912516,2656.8,2656.6,4.3142]
[1727166508772,0.89934979,2656.7,2656.6,4.3142]
[1727166509074,0.78912516,2656.8,2656.7,3.76406]
[1727166509230,0.89929933,2656.8,2656.7,3.76406]
[1727166509431,1.68842449,2656.8,2656.7,3.76406]
[1727166509659,1.68842449,2656.8,2656.7,4.31406]
[1727166509838,1.68844602,2656.8,2656.7,4.31406]
[1727166510043,1.68842594,2656.8,2656.7,4.31406]
[1727166510368,0.78912516,2657.0,2656.7,1.303]
[1727166510664,0.78912516,2657.1,2657.0,0.55]
[1727166510866,1.18368774,2657.2,2657.0,4.31364]
[1727166510867,0.78912516,2657.2,2657.0,4.31364]
[1727166511167,0.78912516,2657.2,2657.1,3.7635]
[1727166511372,1.68827471,2657.2,2657.1,3.7635]
[1727166512382,1.68816343,2657.2,2657.1,3.7635]
[1727166513246,1.68816343,2657.2,2657.0,4.31364]
[1727166513445,0.78912516,2657.2,2657.0,8.07728]
[1727166514243,0.78912516,2657.2,2657.0,8.07721]
[1727166514459,0.78912516,2657.2,2657.0,4.31357]
[1727166514651,0.78912516,2657.2,2657.0,8.07713]
[1727166514860,0.78912516,2657.2,2657.0,4.31356]
[1727166515055,0.78912516,2657.3,2657.0,4.31356]
[1727166515776,0.78912516,2657.3,2657.1,3.76349]
[1727166516064,0.78912516,2657.3,2657.1,3.7635]
[1727166517386,0.78912516,2657.3,2657.0,8.07711]
[1727166517541,0.78912516,2657.3,2657.1,3.76347]
[1727166520881,0.78912516,2657.3,2657.0,0.55]
[1727166520882,0.78912516,2657.3,2657.0,4.31354]
[1727166522988,0.78912516,2657.3,2657.0,0.55]
[1727166523285,0.78912516,2657.3,2657.1,3.76338]
[1727166527330,0.78912516,2657.3,2657.0,4.31361]
[1727166527535,0.28912516,2657.3,2657.0,4.31361]
[1727166527922,0.28912516,2657.2,2657.0,4.31361]
[1727166529158,3.76391,2656.9,2656.4,4.53806]
[1727166529434,6.87138951,2656.8,2656.3,3.76463]
[1727166529648,6.87138951,2656.8,2656.4,3.76448]
[1727166529649,0.7947,2656.7,2656.4,3.76448]
[1727166532640,3.10743951,2657.0,2656.2,0.7736]
[1727166532856,1.18408624,2656.8,2656.6,0.55]
[1727166533026,1.18408624,2657.0,2656.8,0.55]
[1727166533359,0.89755372,2656.9,2656.8,0.55]
[1727166534457,0.89755372,2656.9,2656.8,4.31392]
[1727166535536,1.18408624,2657.1,2656.8,4.31392]
[1727166535856,2.08164339,2657.0,2656.8,4.31392]
[1727166536062,1.57883875,2657.2,2656.8,4.31392]
[1727166536063,0.89755715,2656.9,2656.8,4.31392]
[1727166536350,2.08166881,2657.0,2656.9,3.76378]
[1727166536557,0.8976158,2657.0,2656.9,4.31378]
[1727166539165,1.18408624,2657.0,2656.9,4.31378]
[1727166540179,0.8976158,2657.0,2656.9,4.31378]
[1727166540346,0.7895309,2657.1,2657.0,5.12174]
[1727166540548,0.7895309,2657.2,2657.1,0.55]
[1727166540869,1.68721091,2657.2,2657.1,4.3135]
[1727166547518,1.68721091,2657.2,2656.0,1.17496366]
[1727166547519,3.76358,2657.1,2656.3,8.1181]
[1727166547816,0.78955758,2656.8,2656.5,7.52848]
[1727166548019,1.68723759,2656.7,2656.5,7.52848]
[1727166548313,0.78955758,2656.7,2656.5,3.76421]
[1727166548715,1.68742692,2656.7,2656.5,3.76421]
[1727166549011,0.78955758,2656.7,2656.5,3.76421]
[1727166549215,0.78955758,2656.7,2656.6,0.55]
[1727166549401,1.6874443,2656.7,2656.4,3.55]
[1727166549603,1.6874443,2656.7,2656.4,7.31443]
[1727166549787,1.6874443,2656.6,2656.4,7.31443]
[1727166549984,0.78955758,2656.6,2656.4,7.31443]
[1727166550293,0.78955758,2656.6,2656.5,3.76435]
[1727166550493,0.78955758,2656.6,2656.5,7.31435]
[1727166552188,0.7959,2656.8,2656.6,4.3142]
[1727166552189,0.78955758,2656.8,2656.6,4.3142]
[1727166552410,0.78955758,2656.8,2656.6,3.7642]
[1727166552779,1.68747871,2656.8,2656.6,3.7642]
[1727166552980,0.78955758,2656.8,2656.6,3.7642]
[1727166554703,0.78955758,2656.8,2656.7,3.76406]
[1727166555826,0.78955758,2656.9,2656.8,3.76392]
[1727166556010,0.78955758,2656.9,2656.8,4.31392]
[1727166557512,1.68778263,2656.9,2656.8,4.31392]
[1727166557841,1.68778263,2656.9,2656.7,3.76399]
[1727166558147,1.58545758,2656.8,2656.5,3.76426]
[1727166558435,0.89830844,2656.7,2656.6,0.55]
[1727166558607,2.08336123,2656.7,2656.6,0.55]
[1727166558997,2.08336123,2656.7,2656.6,4.3142]
[1727166560333,1.68822992,2656.7,2656.6,4.3142]
[1727166560841,0.78992148,2656.8,2656.7,4.31406]
[1727166561136,1.68812524,2656.8,2656.7,4.31406]
[1727166563136,1.68816332,2656.8,2656.7,4.31406]
[1727166564042,0.89824184,2656.8,2656.7,4.31406]
[1727166564336,0.78992148,2656.8,2656.7,4.31406]
[1727166564886,1.68816332,2656.8,2656.7,4.31406]
[1727166565298,0.78992148,2656.8,2656.7,4.31406]
[1727166565501,0.89824184,2656.8,2656.7,4.31406]
[1727166566039,1.6882636,2656.8,2656.7,4.31406]
[1727166567432,0.1882636,2656.9,2656.8,4.31392]
[1727166568119,1.18505279,2657.1,2657.0,3.76364]
[1727166569038,1.18505279,2657.1,2657.0,4.31364]
[1727166569243,2.77095374,2657.3,2657.2,4.31335]
[1727166569244,1.18505279,2657.3,2657.2,4.31335]
[1727166569540,1.18505279,2657.7,2657.6,4.31279]
[1727166569909,1.18505279,2657.8,2657.7,4.31265]
[1727166570238,1.19173282,2657.8,2657.7,4.31265]
[1727166570423,1.18441496,2657.8,2657.7,4.31265]
[1727166570947,1.98031496,2657.9,2657.7,4.31265]
[1727166571239,1.98031496,2657.9,2657.8,3.76251]
[1727166571403,1.98729189,2657.9,2657.8,3.76251]
[1727166571600,1.97965058,2657.9,2657.8,3.76251]
[1727166572710,1.97965058,2657.9,2657.7,4.31256]
[1727166573046,1.97965058,2657.9,2657.8,3.76251]
[1727166573932,1.18375058,2658.0,2657.9,3.76236]
[1727166574137,1.98065058,2658.1,2657.9,3.76236]
[1727166574539,5.08036951,2658.3,2658.0,3.76221]
[1727166574540,1.18375058,2658.3,2658.0,3.76221]
[1727166574839,1.18375058,2658.3,2658.2,4.31194]
[1727166575040,0.7969,2658.4,2658.2,4.31194]
[1727166575041,1.98065058,2658.4,2658.2,4.31194]
[1727166575913,0.7969,2658.4,2658.2,4.31194]
[1727166576158,0.7969,2658.4,2658.2,4.31193]
[1727166577465,1.58467909,2658.4,2658.2,4.31193]
[1727166578273,1.58467909,2658.4,2658.2,0.55]
[1727166578432,1.58467909,2658.4,2658.3,3.7618]
[1727166578631,0.7969,2658.4,2658.3,3.7618]
[1727166579144,2.4759099,2658.4,2658.2,3.76187]
[1727166579352,1.58467909,2658.4,2658.2,3.76187]
[1727166579739,0.7969,2658.4,2658.2,3.76187]
[1727166582042,1.58467909,2658.6,2658.4,3.7616]
[1727166582238,0.78777909,2658.7,2658.4,3.76157]
[1727166582445,0.78777909,2658.7,2658.4,0.55]
[1727166582657,1.58467909,2658.8,2658.4,4.31165]
[1727166582838,3.82620138,2658.8,2658.4,4.31165]
[1727166583095,1.67810465,2658.7,2658.4,4.31165]
[1727166583266,0.78777909,2658.7,2658.4,4.31165]
[1727166583468,3.10743951,2658.5,2657.8,0.819]
[1727166583722,0.7969,2658.2,2657.9,3.76226]
[1727166583852,0.7969,2658.2,2657.7,3.76255]
[1727166584370,3.10743951,2658.1,2657.7,3.76255]
[1727166585082,3.10743951,2658.1,2657.7,7.52512]
[1727166585242,3.10743951,2658.1,2657.8,0.55]
[1727166587259,3.10624139,2658.1,2657.8,0.55]
[1727166587478,3.10624139,2658.1,2657.7,4.31264]
[1727166587687,3.49575812,2658.1,2657.6,0.55]
[1727166587981,3.76223,2658.0,2657.6,4.31278]
[1727166588606,3.49575812,2658.1,2657.6,4.31278]
[1727166589373,7.25784812,2658.1,2657.6,4.31278]
[1727166589870,1.34498471,2658.0,2657.6,4.31278]
[1727166590982,3.76302,2657.5,2657.0,0.8025]
[1727166591218,3.10743951,2657.2,2656.8,0.8025]
[1727166592000,3.10743951,2657.2,2656.8,4.56639]
[1727166592167,3.10743951,2657.2,2656.8,0.8025]
[1727166592711,3.10743951,2657.2,2656.9,0.55]
[1727166593407,7.63695346,2657.2,2656.8,0.8025]
[1727166593610,7.63695346,2657.2,2656.7,0.39246705]
[1727166593611,0.76607395,2657.2,2656.7,4.15643705]
[1727166593779,3.7633,2657.3,2656.7,4.15643705]
[1727166595005,3.7633,2657.3,2656.8,4.3139]
[1727166596626,3.10743951,2657.2,2656.8,4.3139]
[1727166598015,4.6852186,2657.4,2656.9,3.76376]
[1727166598215,0.79,2657.4,2657.0,3.76364]
[1727166598424,4.55309,2657.4,2656.8,4.31381]
[1727166598587,1.63483086,2657.4,2656.9,3.76374]
[1727166598929,1.63483086,2657.4,2657.0,3.7636]
[1727166599230,0.79,2657.4,2657.0,3.7636]
[1727166600088,3.8952186,2657.6,2657.1,4.31345]
[1727166600089,7.6580586,2657.6,2657.1,4.31345]
[1727166600403,3.89743951,2657.6,2657.2,3.76334]
[1727166600719,0.79,2657.6,2657.2,3.76334]
[1727166601080,0.79,2657.6,2657.3,4.31319]
[1727166601283,7.4,2657.7,2657.5,0.55]
[1727166601806,7.4,2657.7,2657.2,3.76329]
[1727166602009,3.92903951,2657.6,2657.2,3.0]